Workbook

Sheet Sheet1
A1: X0 | B1: 1 | D1: Method | E1: Integral | F1: Error
A2: Xmax | B2: 2 | D2: Trapezoid | E2: 0.6993606573 | F2: =E2-$B$6 -> 0.006213476752
A3: Max Delta y | B3: 0.01 | D3: Simpson | E3: 0.6931471808 | F3: 2.802803545e-10
A4: Max Delta X | B4: 0.1 | D4: Simpson 3/8 | E4: 0.6931471807 | F4: 1.245724635e-10
A5: f(X) | B5: 1/X | D5: Gauss 2 | E5: 0.6931471804 | F5: -1.868509791e-10
A6: Exact Integral | B6: =LN(B2)-LN(B1) -> 0.6931471806 | D6: Gauss 3 | E6: 0.6931471806 | F6: -3.330669074e-15
D7: Gauss 4 | E7: 0.6931471806 | F7: 0
D8: Gauss 5 | E8: 0.6931471806 | F8: 0

Sheet Sheet2
A1: X0 | B1: 1 | D1: Method | E1: Integral | F1: Error
A2: Xmax | B2: 10 | D2: Trapezoid | E2: 2.309579285 | F2: =E2-$B$6 -> 0.006994191925
A3: Max Delta y | B3: 0.001 | D3: Simpson | E3: 2.302585093 | F3: 1.994671095e-11
A4: Max Delta X | B4: 0.1 | D4: Simpson 3/8 | E4: 2.302585093 | F4: 8.86313245e-12
A5: f(X) | B5: 1/X | D5: Gauss 2 | E5: 2.302585093 | F5: -1.329691912e-11
A6: Exact Integral | B6: =LN(B2)-LN(B1) -> 2.302585093 | D6: Gauss 3 | E6: 2.302585093 | F6: 0
D7: Gauss 4 | E7: 2.302585093 | F7: 0
D8: Gauss 5 | E8: 2.302585093 | F8: 0

Sheet Sheet3
A1: X0 | B1: 1 | D1: Method | E1: Integral | F1: Error
A2: Xmax | B2: 100 | D2: Trapezoid | E2: 4.64859732 | F2: =E2-$B$6 -> 0.04342713397
A3: Max Delta y | B3: 0.001 | D3: Simpson | E3: 4.605170186 | F3: 4.10045331e-11
A4: Max Delta X | B4: 0.1 | D4: Simpson 3/8 | E4: 4.605170186 | F4: 1.822897389e-11
A5: f(X) | B5: 1/X | D5: Gauss 2 | E5: 4.605170186 | F5: -2.732924997e-11
A6: Exact Integral | B6: =LN(B2)-LN(B1) -> 4.605170186 | D6: Gauss 3 | E6: 4.605170186 | F6: 0
D7: Gauss 4 | E7: 4.605170186 | F7: 0
D8: Gauss 5 | E8: 4.605170186 | F8: 0

Sheet Sheet4
A1: X0 | B1: 0 | D1: Method | E1: Integral | F1: Error
A2: Xmax | B2: 1 | D2: Trapezoid | E2: 0.51 | F2: =E2-$B$6 -> 0.01
A3: Max Delta y | B3: 0.01 | D3: Simpson | E3: 0.5 | F3: 0
A4: Max Delta X | B4: 0.1 | D4: Simpson 3/8 | E4: 0.5 | F4: 0
A5: f(X) | B5: X | D5: Gauss 2 | E5: 0.5 | F5: 0
A6: Exact Integral | B6: =(B2^2-B1^2)/2 -> 0.5 | D6: Gauss 3 | E6: 0.5 | F6: 0
D7: Gauss 4 | E7: 0.5 | F7: 0
D8: Gauss 5 | E8: 0.5 | F8: 0

Sheet Sheet5
A1: X0 | B1: 0 | D1: Method | E1: Integral | F1: Error
A2: Xmax | B2: 2 | D2: Trapezoid | E2: 2.666878598 | F2: =E2-$B$6 -> 0.0002119309943
A3: Max Delta y | B3: 0.001 | D3: Simpson | E3: 2.666666667 | F3: 0
A4: Max Delta X | B4: 0.1 | D4: Simpson 3/8 | E4: 2.666666667 | F4: 0
A5: f(X) | B5: X^2 | D5: Gauss 2 | E5: 2.666666667 | F5: 0
A6: Exact Integral | B6: =(B2^3-B1^3)/3 -> 2.666666667 | D6: Gauss 3 | E6: 2.666666667 | F6: 0
D7: Gauss 4 | E7: 2.666666667 | F7: 0
D8: Gauss 5 | E8: 2.666666667 | F8: 0

Sheet Sheet6
A1: X0 | B1: 1 | D1: Method | E1: Integral | F1: Error
A2: Xmax | B2: 2 | D2: Trapezoid | E2: 2.333506634 | F2: =E2-$B$6 -> 0.0001733001856
A3: Max Delta y | B3: 0.001 | D3: Simpson | E3: 2.333333333 | F3: -3.552713679e-15
A4: Max Delta X | B4: 0.1 | D4: Simpson 3/8 | E4: 2.333333333 | F4: -5.773159728e-15
A5: f(X) | B5: X^2 | D5: Gauss 2 | E5: 2.333333333 | F5: -3.996802889e-15
A6: Exact Integral | B6: =(B2^3-B1^3)/3 -> 2.333333333 | D6: Gauss 3 | E6: 2.333333333 | F6: 0
D7: Gauss 4 | E7: 2.333333333 | F7: -4.440892099e-15
D8: Gauss 5 | E8: 2.333333333 | F8: -3.996802889e-15

Sheet Sheet7
A1: X0 | B1: 0 | D1: Method | E1: Integral | F1: Error
A2: Xmax | B2: 5 | D2: Trapezoid | E2: 0.5011779852 | F2: =E2-$B$6 -> -0.001096954932
A3: Max Delta y | B3: 0.01 | D3: Simpson | E3: 0.5022749246 | F3: -1.54401385e-08
A4: Max Delta X | B4: 0.1 | D4: Simpson 3/8 | E4: 0.5022749332 | F4: -6.862146851e-09
A5: f(X) | B5: EXP(-X)*SIN(X) | D5: Gauss 2 | E5: 0.5022749504 | F5: 1.029354912e-08
A6: Exact Integral | B6: 0.5022749401 | D6: Gauss 3 | E6: 0.5022749401 | F6: -1.325606291e-13
D7: Gauss 4 | E7: 0.5022749401 | F7: 0
D8: Gauss 5 | E8: 0.5022749401 | F8: 0

Sheet Sheet8
A1: X0 | B1: 0 | D1: Method | E1: Integral | F1: Error
A2: Xmax | B2: 5 | D2: Trapezoid | E2: 0.4829785334 | F2: =E2-$B$6 -> -0.01929640665
A3: Max Delta y | B3: 0.1 | D3: Simpson | E3: 0.5022748703 | F3: -6.980137457e-08
A4: Max Delta X | B4: 0.1 | D4: Simpson 3/8 | E4: 0.5022749091 | F4: -3.102081036e-08
A5: f(X) | B5: EXP(-X)*SIN(X) | D5: Gauss 2 | E5: 0.5022749866 | F5: 4.653607188e-08
A6: Exact Integral | B6: 0.5022749401 | D6: Gauss 3 | E6: 0.5022749401 | F6: -1.965760887e-12
D7: Gauss 4 | E7: 0.5022749401 | F7: 0
D8: Gauss 5 | E8: 0.5022749401 | F8: 0

Sheet Sheet9
A1: X0 | B1: 0 | D1: Method | E1: Integral | F1: Error
A2: Xmax | B2: 5 | D2: Trapezoid | E2: 30.97892139 | F2: =E2-$B$6 -> 30.58212261
A3: Max Delta y | B3: 0.01 | D3: Simpson | E3: 0.3967988279 | F3: 4.629011519e-08
A4: Max Delta X | B4: 0.1 | D4: Simpson 3/8 | E4: 0.3967988022 | F4: 2.05702243e-08
A5: f(X) | B5: EXP(-X)*(SIN(X))^2 | D5: Gauss 2 | E5: 0.3967987508 | F5: -3.086292005e-08
A6: Exact Integral | B6: 0.3967987816 | D6: Gauss 3 | E6: 0.3967987816 | F6: 3.072597732e-12
D7: Gauss 4 | E7: 0.3967987816 | F7: 0
D8: Gauss 5 | E8: 0.3967987816 | F8: 0

Sheet Sheet10
A1: X0 | B1: 0 | D1: Method | E1: Integral | F1: Error
A2: Xmax | B2: 5 | D2: Trapezoid | E2: 3.097892139 | F2: =E2-$B$6 -> 2.701093357
A3: Max Delta y | B3: 0.001 | D3: Simpson | E3: 0.3967987865 | F3: 4.81825263e-09
A4: Max Delta X | B4: 0.1 | D4: Simpson 3/8 | E4: 0.3967987838 | F4: 2.141337219e-09
A5: f(X) | B5: EXP(-X)*(SIN(X))^2 | D5: Gauss 2 | E5: 0.3967987784 | F5: -3.212265287e-09
A6: Exact Integral | B6: 0.3967987816 | D6: Gauss 3 | E6: 0.3967987816 | F6: 1.061373212e-13
D7: Gauss 4 | E7: 0.3967987816 | F7: 0
D8: Gauss 5 | E8: 0.3967987816 | F8: 4.996003611e-16

Sheet Sheet11
A1: X0 | B1: 0 | D1: Method | E1: Integral | F1: Error
A2: Xmax | B2: 1 | D2: Trapezoid | E2: 0.333354031 | F2: =E2-$B$6 -> 2.069763698e-05
A3: Max Delta y | B3: 0.001 | D3: Simpson | E3: 0.3333333333 | F3: 0
A4: Max Delta X | B4: 0.1 | D4: Simpson 3/8 | E4: 0.3333333333 | F4: 0
A5: f(X) | B5: X^2 | D5: Gauss 2 | E5: 0.3333333333 | F5: 0
A6: Exact Integral | B6: =1/3 -> 0.3333333333 | D6: Gauss 3 | E6: 0.3333333333 | F6: 0
D7: Gauss 4 | E7: 0.3333333333 | F7: 0
D8: Gauss 5 | E8: 0.3333333333 | F8: 0
